bitfinex/quotes_ETHUSD_20240924
["timestamp","ask_amount","ask_price","bid_price","bid_amount"]
[1727186129261,3.8119784,2650.2,2649.7,3.774]
[1727186130578,0.0386084,2650.2,2649.7,8.4297459]
[1727186130941,0.0386084,2650.2,2649.8,3.77386]
[1727186131136,0.0386084,2650.2,2649.9,3.77369]
[1727186131341,0.0386084,2650.2,2649.9,4.61663359]
[1727186131583,0.0386084,2650.2,2649.7,4.6557459]
[1727186131961,3.8119984,2650.2,2649.7,4.6557459]
[1727186132752,3.77358,2650.0,2649.5,4.5856]
[1727186133053,3.77358,2650.0,2649.6,4.0]
[1727186133788,3.77358,2650.0,2649.5,4.5856]
[1727186133947,3.77358,2650.0,2649.5,8.35979]
[1727186134148,3.77358,2650.0,2649.5,8.3598]
[1727186134542,3.77344,2650.1,2649.5,4.58559]
[1727186134963,3.77344,2650.1,2649.6,3.77411]
[1727186135546,3.77344,2650.1,2649.5,5.044149]
[1727186135742,7.547,2650.1,2649.5,8.818359]
[1727186135947,3.77344,2650.1,2649.5,5.044149]
[1727186136147,3.77363,2650.0,2649.5,5.044149]
[1727186136571,3.77363,2650.0,2649.5,8.818339]
[1727186136771,3.77344,2650.1,2649.5,0.8114]
[1727186136973,3.77379,2649.9,2649.4,3.7744]
[1727186137155,7.54759,2649.9,2649.4,3.7744]
[1727186137759,3.77379,2649.9,2649.4,3.7744]
[1727186139310,3.77425,2649.6,2649.1,3.77486]
[1727186139619,0.78895106,2649.7,2649.3,3.77458]
[1727186139766,3.77397,2649.8,2649.3,3.77458]
[1727186139767,8.33689106,2649.8,2649.3,3.77458]
[1727186139965,8.33689106,2649.8,2649.2,3.77471]
[1727186139966,3.77409,2649.7,2649.2,3.77471]
[1727186140405,3.77409,2649.7,2649.0,7.73222287]
[1727186140406,3.77401,2649.7,2649.0,7.73222287]
[1727186140606,4.56296106,2649.7,2649.2,3.77465]
[1727186142087,0.78895106,2649.7,2649.3,3.77451]
[1727186142284,4.56288106,2649.8,2649.3,3.77451]
[1727186142570,0.78895106,2649.7,2649.3,7.549]
[1727186142799,0.78895106,2649.7,2649.3,3.77449]
[1727186144406,0.78895106,2649.7,2649.4,3.77438]
[1727186145112,0.78895106,2649.7,2649.5,3.77415]
[1727186145694,0.78895106,2649.8,2649.5,3.77415]
[1727186146226,0.78895106,2649.8,2649.5,3.77422]
[1727186147339,0.78895106,2649.8,2649.5,4.52908]
[1727186147487,0.78895106,2649.9,2649.6,3.77415]
[1727186148198,0.78895106,2649.9,2649.6,3.77413]
[1727186148586,0.78895106,2649.8,2649.5,3.77422]
[1727186148825,0.78895106,2649.8,2649.5,7.54842]
[1727186149036,0.78895106,2649.8,2649.5,7.54841]
[1727186149200,0.78895106,2649.8,2649.6,3.77415]
[1727186150225,0.78895106,2649.9,2649.6,3.77415]
[1727186150524,0.78895106,2649.9,2649.4,0.7605]
[1727186150525,0.78895106,2649.8,2649.4,0.7605]
[1727186150727,4.56288106,2649.8,2649.3,3.77445]
[1727186150935,4.56288106,2649.8,2649.1,3.77477]
[1727186150936,0.78895106,2649.6,2649.1,3.77477]
[1727186151137,0.78895106,2649.6,2649.3,4.0]
[1727186151138,0.78895106,2649.5,2649.3,4.0]
[1727186151485,4.56333106,2649.5,2649.3,4.0]
[1727186151690,4.56338106,2649.4,2649.3,4.0]
[1727186152389,6.06736526,2649.4,2649.3,4.0]
[1727186152620,4.88450238,2649.4,2649.3,4.0]
[1727186152821,6.46467225,2649.4,2649.3,4.0]
[1727186153023,6.46467225,2649.4,2648.7,3.77536]
[1727186153024,3.77474,2649.2,2648.7,3.77536]
[1727186153237,3.77474,2649.2,2648.8,4.0]
[1727186153238,0.79170118,2649.1,2648.8,4.0]
[1727186153536,0.79170118,2649.1,2648.7,7.5507]
[1727186153736,0.79170118,2649.1,2648.7,8.69436229]
[1727186154044,4.56657118,2649.1,2648.7,1.14366229]
[1727186154547,0.79170118,2649.1,2648.7,4.91909229]
[1727186155345,4.56646118,2649.2,2648.7,4.91909229]
[1727186155850,0.79170118,2649.2,2648.5,3.77561]
[1727186155998,4.56679118,2649.0,2648.5,3.77561]
[1727186156203,3.77509,2649.0,2648.5,3.77561]
[1727186156399,4.56679118,2649.0,2648.5,3.77561]
[1727186156604,4.56679118,2649.0,2648.6,4.0]
[1727186156912,3.77509,2649.0,2648.6,4.0]
[1727186157239,0.79170118,2649.1,2648.6,7.7755]
[1727186157453,0.79170118,2649.1,2648.7,0.777561]
[1727186158146,3.77538,2648.8,2648.6,4.0]
[1727186158330,4.66152434,2648.7,2648.6,4.0]
[1727186158552,5.05737493,2648.7,2648.6,4.0]
[1727186158839,6.00459487,2648.7,2648.6,4.0]
[1727186159172,3.7757,2648.6,2647.9,4.537]
[1727186159459,4.56661432,2648.6,2648.1,3.77627]
[1727186159605,4.56655432,2648.6,2648.1,3.77621]
[1727186160020,0.45665543,2648.5,2648.0,4.0]
[1727186160258,3.77619,2648.2,2648.0,4.0]
[1727186160552,0.79091432,2648.3,2648.0,4.0]
[1727186160956,0.79091432,2648.2,2648.0,4.0]
[1727186161519,0.79091432,2648.3,2647.8,3.77671]
[1727186162057,0.79091432,2648.4,2647.9,7.55294]
[1727186162263,0.79091432,2648.4,2647.8,1.14394929]
[1727186162443,3.77602,2648.3,2647.7,7.55366]
[1727186162628,4.56678432,2648.4,2647.7,7.55356]
[1727186163030,4.56678432,2648.4,2647.8,3.77661]
[1727186163243,0.79091432,2648.4,2648.0,3.77642]
[1727186163447,4.56672432,2648.5,2647.9,3.77655]
[1727186163816,0.79091432,2648.5,2648.0,3.77642]
[1727186164422,8.34226432,2648.6,2648.0,3.77642]
[1727186164748,3.77574,2648.5,2648.0,3.77642]
[1727186165082,0.79091432,2648.6,2648.0,5.03731853]
[1727186165235,4.56636432,2648.7,2648.0,8.81362853]
[1727186165555,3.77564,2648.6,2648.0,5.03727853]
[1727186166222,3.77564,2648.6,2648.1,0.81627014]
[1727186166762,3.77564,2648.6,2648.1,4.59253014]
[1727186167068,3.77564,2648.6,2648.1,0.81627014]
[1727186167536,3.8701665,2648.5,2648.0,3.7764]
[1727186167720,3.77577,2648.5,2648.0,3.7764]
[1727186168350,7.55109,2648.7,2648.0,3.7763]
[1727186168565,0.79091432,2648.8,2648.4,3.77577]
[1727186168763,3.86955794,2648.9,2648.4,3.77577]
[1727186169056,7.29,2649.0,2648.2,3.93212287]
[1727186169270,7.29,2649.0,2648.4,6.90118287]
[1727186169772,11.06503,2649.0,2648.5,3.77567]
[1727186169921,3.77503,2649.0,2648.5,3.77567]
[1727186170121,3.7754,2648.8,2648.2,4.58273]
[1727186170637,3.7754,2648.8,2648.3,3.77599]
[1727186171270,3.77518,2648.9,2648.4,3.77584]
[1727186171901,3.77537,2648.8,2648.2,4.58273]
[1727186172025,3.77537,2648.8,2648.3,3.77588]
[1727186172226,3.77508,2649.0,2648.2,5.40703794]
[1727186172458,3.77508,2649.0,2648.4,3.77577]
[1727186172763,3.77508,2649.0,2648.4,3.77575]
[1727186173458,3.77522,2648.9,2648.4,3.77575]
[1727186173632,3.77531,2648.8,2648.3,3.77598]
[1727186173826,7.55072,2648.8,2648.3,3.77598]
[1727186174164,0.09438987,2648.7,2648.2,4.58278]
[1727186174375,3.77587,2648.4,2647.9,0.8067]
[1727186174670,3.77583,2648.5,2648.0,3.7764]
[1727186174835,0.09440138,2648.4,2648.0,3.7764]
[1727186175041,3.87027138,2648.4,2647.9,4.58327]
[1727186175243,3.87027138,2648.4,2647.9,3.77657]
[1727186175559,3.77587,2648.4,2647.9,3.77657]
[1727186175942,3.77575,2648.5,2648.0,3.77642]
[1727186176140,0.09440384,2648.4,2647.8,3.77658]
[1727186176341,7.64624384,2648.4,2647.9,3.77657]
[1727186176535,3.87027384,2648.4,2647.9,3.77657]
[1727186176754,3.87027384,2648.4,2647.7,4.58354]
[1727186176755,3.77601,2648.3,2647.7,8.36038]
[1727186176927,0.09440906,2648.2,2647.8,3.77669]
[1727186177124,3.77587,2648.4,2647.7,5.419518]
[1727186177327,3.77587,2648.4,2647.8,3.7767]
[1727186177328,3.77602,2648.3,2647.8,3.7767]
[1727186177522,0.09441276,2648.2,2647.5,4.58375]
[1727186177769,3.87064276,2648.2,2647.7,3.77685]
[1727186177970,7.64687276,2648.2,2647.7,3.77685]
[1727186178140,4.67765534,2648.2,2647.6,4.0]
[1727186178482,3.7766,2647.9,2647.6,4.0]
[1727186178634,3.77645,2648.0,2647.6,4.0]
[1727186179251,3.77645,2648.0,2647.3,3.7773]
[1727186179252,3.87100136,2647.9,2647.3,3.7773]
[1727186179453,3.87100136,2647.9,2647.4,7.77721]
[1727186180753,3.87100136,2647.9,2647.4,3.77721]
[1727186180953,3.77658,2647.9,2647.4,3.77721]
[1727186181157,0.09442389,2647.8,2647.4,3.77721]
[1727186181335,0.0944239,2647.9,2647.5,3.77714]
[1727186181556,0.0944239,2647.9,2647.4,3.7772]
[1727186182072,3.8710139,2647.9,2647.4,3.7772]
[1727186183483,3.77659,2647.9,2647.4,3.7772]
[1727186183784,3.77645,2648.0,2647.6,6.90233287]
[1727186184073,3.77645,2648.0,2647.6,3.77691]
[1727186184651,7.5528,2648.1,2647.6,3.77691]
[1727186184842,3.77637,2648.1,2647.6,3.77691]
[1727186185634,7.55274,2648.1,2647.6,3.77691]
[1727186186036,3.77637,2648.1,2647.6,4.92195552]
[1727186186673,3.77616,2648.2,2647.7,4.58355]
[1727186186874,3.77608,2648.3,2647.8,3.77671]
[1727186187294,3.77632,2648.1,2647.7,1.75725055]
[1727186187448,3.77632,2648.1,2647.6,4.92196552]
[1727186187449,3.77632,2648.1,2647.6,7.55384]
[1727186187653,3.77632,2648.1,2647.6,3.77692]
[1727186187886,3.77632,2648.1,2647.7,3.77685]
[1727186189091,3.77654,2648.0,2647.5,3.77707]
[1727186189592,3.77705,2647.6,2647.1,4.58434]
[1727186189798,3.77738,2647.4,2647.2,4.0]
[1727186191903,4.80937994,2647.1,2647.0,0.0386084]
[1727186192217,7.93480528,2647.1,2647.0,0.0386084]
[1727186192505,7.84034554,2647.1,2647.0,0.0386084]
[1727186193359,7.9348157,2647.1,2647.0,0.0386084]
[1727186193559,4.71492267,2647.1,2647.0,0.0386084]
[1727186193807,4.80939294,2647.1,2647.0,0.0386084]
[1727186193984,4.71492267,2647.1,2647.0,0.0386084]
[1727186195306,4.80938918,2647.1,2647.0,0.0386084]
[1727186195511,7.93481205,2647.1,2647.0,0.0386084]
[1727186195689,10.93481205,2647.1,2647.0,0.0386084]
[1727186195906,10.84034554,2647.1,2647.0,0.0386084]
[1727186197192,11.63125986,2647.1,2647.0,0.0386084]
[1727186198285,10.84034554,2647.1,2647.0,0.0386084]
[1727186199920,9.84034554,2647.1,2647.0,0.0386084]
[1727186200076,10.84034554,2647.1,2647.0,0.0386084]
[1727186200876,7.71492267,2647.1,2647.0,0.0386084]
[1727186201896,10.84034554,2647.1,2647.0,0.0386084]
[1727186203909,11.63125986,2647.1,2647.0,0.0386084]
[1727186204114,12.42372157,2647.1,2647.0,0.0386084]
[1727186206466,10.84034554,2647.1,2647.0,0.0386084]
[1727186207354,7.95160504,2647.1,2647.0,0.0386084]
[1727186207660,10.29034554,2647.1,2647.0,0.0386084]
[1727186208615,10.84034554,2647.1,2647.0,0.0386084]
[1727186210217,11.62702791,2647.1,2647.0,0.0386084]
[1727186210460,10.84034554,2647.1,2647.0,0.0386084]
[1727186218831,8.50160504,2647.1,2647.0,0.0386084]
[1727186219033,7.71492267,2647.1,2647.0,0.0386084]
[1727186219430,11.62702791,2647.1,2647.0,0.0386084]
[1727186219633,10.84034554,2647.1,2647.0,0.0386084]
[1727186219989,3.77771,2647.1,2647.0,0.0386084]
[1727186220132,3.7775,2647.3,2647.0,0.8633084]
[1727186220529,3.77721,2647.5,2647.1,0.03471997]
[1727186220737,3.77707,2647.6,2647.1,3.81242997]
[1727186220957,3.77707,2647.6,2647.2,0.84534784]
[1727186221162,3.77714,2647.5,2647.2,0.84534784]
[1727186221349,3.77714,2647.5,2647.3,0.03444572]
[1727186221559,0.09444039,2647.4,2647.2,0.84534784]
[1727186221881,0.09444039,2647.4,2647.3,0.03444572]
[1727186222180,4.32729,2647.4,2647.3,0.03444572]
[1727186222334,4.42174041,2647.4,2647.3,0.03444572]
[1727186222681,4.32747,2647.3,2647.0,0.8633084]
[1727186222978,4.32747,2647.3,2647.0,0.0386084]
[1727186222979,3.87210103,2647.2,2647.0,0.0386084]
[1727186223178,4.32771,2647.1,2647.0,0.0386084]
[1727186223347,7.45313287,2647.1,2647.0,0.0386084]
[1727186224577,8.23981524,2647.1,2647.0,0.0386084]
[1727186224803,6.43416948,2647.1,2647.0,0.0386084]
[1727186225392,4.32771,2647.1,2647.0,0.0386084]
[1727186225948,4.32771,2647.1,2647.0,0.07326234]
[1727186228283,7.42216998,2647.1,2647.0,0.07326234]
[1727186228477,9.00556502,2647.1,2647.0,0.07326234]
[1727186228654,9.29749936,2647.1,2647.0,0.0386084]
[1727186228981,10.99052636,2647.1,2647.0,0.0386084]
[1727186229384,9.020737,2647.1,2647.0,0.0386084]
[1727186229544,10.39824339,2647.1,2647.0,0.0386084]
[1727186230287,10.39824339,2647.1,2647.0,0.00602574]
[1727186230898,13.15594849,2647.1,2647.0,0.00602574]
[1727186231051,17.01106915,2647.1,2647.0,0.00602574]
[1727186231373,14.25336405,2647.1,2647.0,0.00602574]
[1727186231576,17.01878281,2647.1,2647.0,0.00602574]
[1727186232188,14.25336405,2647.1,2647.0,0.00602574]
[1727186232385,17.01878281,2647.1,2647.0,0.00602574]
[1727186233272,14.25336405,2647.1,2647.0,0.00602574]
[1727186233968,17.5109032,2647.1,2647.0,0.00602574]
[1727186235023,38.14236405,2647.1,2647.0,0.00602574]
[1727186235247,39.79679183,2647.1,2647.0,0.00602574]
[1727186235372,43.72193702,2647.1,2647.0,0.00602574]
[1727186236143,43.72609941,2647.1,2647.0,0.00602574]
[1727186236444,43.72609941,2647.1,2646.2,0.0386084]
[1727186236445,4.32886,2646.3,2646.2,0.0386084]
[1727186236592,15.93153009,2646.3,2646.2,0.0386084]
[1727186236788,12.56148705,2646.3,2646.2,0.0386084]
[1727186237225,16.4921129,2646.3,2646.2,0.00602932]
[1727186237432,16.54048705,2646.3,2646.2,0.00602932]
[1727186237604,17.51753004,2646.3,2646.2,0.00602932]
[1727186238031,13.53853004,2646.3,2646.2,0.00602932]
[1727186238209,14.61198167,2646.3,2646.2,0.00602932]
[1727186238405,12.95755389,2646.3,2646.2,0.00602932]
[1727186238616,6.13340938,2646.3,2646.2,0.00602932]
[1727186238814,5.15636639,2646.3,2646.2,0.00602932]
[1727186239137,3.77886,2646.3,2646.2,0.00602932]
[1727186239334,7.53077906,2646.3,2646.2,0.00602932]
[1727186239585,7.62527947,2646.3,2646.2,0.00602932]
[1727186239695,5.15636639,2646.3,2646.2,0.00602932]
[1727186239891,8.04393584,2646.3,2646.2,0.00602932]
[1727186240126,12.64744134,2646.3,2646.2,0.00602932]
[1727186240330,16.502562,2646.3,2646.2,0.00602932]
[1727186240642,9.87692742,2646.3,2646.2,0.00602932]
[1727186242094,13.73204808,2646.3,2646.2,0.00602932]
[1727186242597,17.00348618,2646.3,2646.2,0.00602932]
[1727186242801,17.71104808,2646.3,2646.2,0.00602932]
[1727186242996,20.98248618,2646.3,2646.2,0.00602932]
[1727186243934,17.00348618,2646.3,2646.2,0.00602932]
[1727186244113,13.73204808,2646.3,2646.2,0.00602932]
[1727186244313,13.73204808,2646.3,2646.2,0.00093636]
[1727186244314,17.71104808,2646.3,2646.2,0.00093636]
[1727186244531,9.87692742,2646.3,2646.2,0.00093636]
[1727186244719,5.15636639,2646.3,2646.2,0.00093636]
[1727186244912,3.77886,2646.3,2646.2,0.00093636]
[1727186246114,7.32886,2646.3,2646.2,0.00093636]
[1727186246343,8.75475981,2646.3,2646.2,0.00093636]
[1727186247462,6.77886,2646.3,2646.2,0.00093636]
[1727186247669,8.7162368,2646.3,2646.2,0.00093636]
[1727186247983,8.62173389,2646.3,2646.2,0.00093636]
[1727186248483,9.30476088,2646.3,2646.2,0.00093636]
[1727186248684,9.30476088,2646.3,2646.2,0.80493636]
[1727186248685,3.77886,2646.3,2646.2,0.80493636]
[1727186248889,0.7902997,2646.3,2646.2,0.80493636]
[1727186249086,1.58064284,2646.5,2646.2,0.80493636]
[1727186249087,0.7902997,2646.5,2646.2,0.80493636]
[1727186249244,4.5687997,2646.6,2646.3,0.804]
[1727186249448,0.7902997,2646.5,2646.3,0.804]
[1727186249758,3.77871,2646.4,2646.3,0.804]
[1727186250085,4.32886,2646.3,2646.2,0.00093636]
[1727186250245,4.42335362,2646.3,2646.2,0.00093636]
[1727186250445,6.00399646,2646.3,2646.2,0.00093636]
[1727186252351,5.90950284,2646.3,2646.2,0.00093636]
[1727186252652,7.07591421,2646.3,2646.2,0.00093636]
[1727186253549,10.07591421,2646.3,2646.2,0.00093636]
[1727186253752,10.47117225,2646.3,2646.2,0.00093636]
[1727186254190,8.49527137,2646.3,2646.2,0.00093636]
[1727186255856,12.24783314,2646.3,2646.2,0.00093636]
[1727186256374,9.87670037,2646.3,2646.2,0.00093636]
[1727186256561,8.49527137,2646.3,2646.2,0.00093636]
[1727186258292,9.87653013,2646.3,2646.2,0.00093636]
[1727186258496,15.38230681,2646.3,2646.2,0.00093636]
[1727186259365,8.49527137,2646.3,2646.2,0.00093636]
[1727186259709,10.47085925,2646.3,2646.2,0.00093636]
[1727186260778,10.47085925,2646.3,2646.2,0.82873636]
[1727186260968,4.96414663,2646.3,2646.2,0.82873636]
[1727186261164,5.05863843,2646.3,2646.2,0.82873636]
[1727186261503,5.45378952,2646.3,2646.2,0.82873636]
[1727186262299,5.90929772,2646.3,2646.2,0.82873636]
[1727186262501,7.07565728,2646.3,2646.2,0.82873636]
[1727186262794,5.51421585,2646.3,2646.2,0.82873636]
[1727186263331,5.51421585,2646.3,2646.2,0.00093636]
[1727186263332,10.55800129,2646.3,2646.2,0.00093636]
[1727186263484,10.55800129,2646.3,2645.5,0.8278]
[1727186263485,4.32986,2645.6,2645.5,0.8278]
[1727186264002,4.42437212,2645.6,2645.5,0.8278]
[1727186264183,5.44238804,2645.6,2645.5,0.8278]
[1727186264390,6.23283392,2645.6,2645.5,0.8278]
[1727186264698,6.1383218,2645.6,2645.5,0.8278]
[1727186266595,6.232839,2645.6,2645.5,0.8278]
[1727186267018,6.1383218,2645.6,2645.5,0.8278]
[1727186267423,6.53351014,2645.6,2645.5,0.8278]
[1727186268338,5.51549422,2645.6,2645.5,0.8278]
[1727186270538,4.32986,2645.6,2645.5,0.8278]
[1727186270852,5.91070563,2645.6,2645.5,0.8278]
[1727186271573,4.32986,2645.6,2645.5,0.8278]
[1727186271774,6.40262321,2645.6,2645.5,0.8278]
[1727186271933,4.33,2645.5,2645.4,0.0386084]
[1727186272140,6.00789273,2645.5,2645.4,0.0386084]
[1727186272640,4.42451887,2645.5,2645.4,0.0386084]
[1727186272860,6.0085009,2645.5,2645.4,0.0386084]
[1727186273286,4.42451887,2645.5,2645.4,0.0386084]
[1727186273442,6.40276544,2645.5,2645.4,0.0386084]
[1727186273974,6.30824657,2645.5,2645.4,0.0386084]
[1727186274143,5.30824657,2645.5,2645.4,0.0386084]
[1727186275335,5.30824657,2645.5,2645.4,0.8333084]
[1727186276365,7.00444682,2645.5,2645.4,0.8333084]
[1727186276566,5.85824657,2645.5,2645.4,0.8333084]
[1727186278713,10.10916201,2645.5,2645.4,0.0386084]
[1727186279018,11.40200849,2645.5,2645.4,0.0386084]
[1727186280079,13.78045264,2645.5,2645.4,0.0386084]
[1727186280279,13.4355346,2645.5,2645.4,0.0386084]
[1727186280478,10.30089069,2645.5,2645.4,0.0386084]
[1727186283626,13.07563207,2645.5,2645.4,0.0386084]
[1727186283785,10.30089069,2645.5,2645.4,0.0386084]
[1727186284189,13.57855394,2645.5,2645.4,0.0386084]
[1727186284388,10.30089069,2645.5,2645.4,0.0386084]
[1727186285025,13.07460612,2645.5,2645.4,0.0386084]
[1727186285228,10.30089069,2645.5,2645.4,0.0386084]
[1727186285395,13.07457567,2645.5,2645.4,0.0386084]
[1727186287334,13.07358272,2645.5,2645.4,0.0386084]
[1727186288425,17.05258272,2645.5,2645.4,0.0386084]
[1727186288627,40.59977706,2645.5,2645.4,0.0386084]
[1727186288927,40.59977706,2645.5,2645.4,0.00589261]
[1727186288928,38.98930896,2645.5,2645.4,0.00589261]
[1727186289364,6.91578391,2644.7,2644.2,0.7947]
[1727186289517,9.91578391,2644.7,2644.2,0.7947]
[1727186290534,6.78114,2644.7,2644.2,0.7947]
[1727186290835,8.75947079,2644.7,2644.2,0.7947]
[1727186291003,8.36378927,2644.7,2644.6,0.8333084]
[1727186291329,5.36378927,2644.7,2644.6,0.8333084]
[1727186291495,3.78114,2644.7,2644.6,0.8333084]
[1727186291699,4.57231238,2644.7,2644.6,0.8333084]
[1727186293003,0.79117238,2644.7,2644.6,0.8333084]
[1727186293537,4.57223238,2644.8,2644.6,0.8333084]
[1727186293739,0.79117238,2644.8,2644.6,5.07606624]
[1727186293925,0.79117238,2644.9,2644.7,0.7947]
[1727186294241,0.79117238,2645.0,2644.7,0.7947]
[1727186294445,0.79117238,2645.0,2644.7,1.25616584]
[1727186296018,0.79117238,2645.0,2644.8,0.7947]
[1727186296221,0.79117238,2645.0,2644.9,4.57556]
[1727186296544,1.58264927,2645.2,2644.9,0.7947]
[1727186296545,0.79117238,2645.2,2644.9,0.7947]
[1727186296749,0.88569263,2645.1,2644.9,0.7947]
[1727186296912,0.79117238,2645.0,2644.9,0.7947]
[1727186297855,5.0621413,2645.0,2644.9,0.7947]
[1727186298146,5.51761346,2645.0,2644.9,0.7947]
[1727186298440,4.33071,2645.0,2644.9,0.7947]
[1727186298644,1.73730063,2645.0,2644.9,0.7947]
[1727186298814,1.18730063,2645.0,2644.9,0.7947]
[1727186299010,0.79149374,2645.0,2644.9,0.7947]
[1727186299243,0.79149374,2645.0,2644.9,1.252261]
[1727186299456,0.79149374,2645.0,2644.9,0.7947]
[1727186300664,4.57220374,2645.0,2644.9,0.7947]
[1727186300956,5.0625376,2645.0,2644.9,0.7947]
[1727186301162,5.0625376,2645.0,2644.7,0.7947]
[1727186301163,3.78102,2644.8,2644.7,0.7947]
[1727186301358,4.57272404,2644.8,2644.7,0.7947]
[1727186301526,3.78102,2644.8,2644.7,0.7947]
[1727186302745,4.96857607,2644.8,2644.7,0.7947]
[1727186302936,3.78114,2644.7,2644.6,0.0386084]
[1727186303141,4.42567869,2644.7,2644.6,0.0386084]
[1727186303345,5.61323476,2644.7,2644.6,0.0386084]
[1727186303664,4.33114,2644.7,2644.6,0.0386084]
[1727186303859,5.91378927,2644.7,2644.6,0.0386084]
[1727186304038,7.08119528,2644.7,2644.6,0.0386084]
[1727186304233,5.49854601,2644.7,2644.6,0.0386084]
[1727186304466,5.59310058,2644.7,2644.6,0.0386084]
[1727186304662,7.57235146,2644.7,2644.6,0.0386084]
[1727186304841,8.72774449,2644.7,2644.6,0.0386084]
[1727186305038,8.63318992,2644.7,2644.6,0.0386084]
[1727186305335,10.02176289,2644.7,2644.6,0.0386084]
[1727186305540,8.63318992,2644.7,2644.6,0.0386084]
[1727186305739,11.63318992,2644.7,2644.6,0.0386084]
[1727186305944,15.39669075,2644.7,2644.6,0.0386084]
[1727186306145,15.39695885,2644.7,2644.6,0.0386084]
[1727186307884,13.0215897,2644.7,2644.6,0.0386084]
[1727186309794,13.0215897,2644.7,2644.0,0.038]
[1727186309795,7.332,2644.1,2644.0,0.038]
[1727186310078,14.23071301,2644.1,2644.0,0.038]
[1727186310870,14.22975048,2644.1,2644.0,0.038]
[1727186311108,11.85504369,2644.1,2644.0,0.038]
[1727186311471,14.62374232,2644.1,2644.0,0.038]
[1727186311726,14.73423359,2644.1,2644.0,0.038]
[1727186312621,14.36665517,2644.1,2644.0,0.038]
[1727186312798,11.59958968,2644.1,2644.0,0.038]
[1727186313107,15.57858968,2644.1,2644.0,0.038]
[1727186313308,20.51487473,2644.1,2644.0,0.038]
[1727186313510,20.51487473,2644.1,2643.8,0.0386084]
[1727186313511,3.78229,2643.9,2643.8,0.0386084]
[1727186313814,7.33343,2643.1,2642.2,0.8208084]
[1727186314010,7.33343,2643.1,2642.2,0.0386084]
[1727186314011,10.46807391,2643.1,2642.2,0.0386084]
[1727186314481,12.44095375,2643.1,2642.2,0.0386084]
[1727186314842,13.60832924,2643.1,2642.2,0.0386084]
[1727186315318,31.54547992,2643.1,2642.2,0.0386084]
[1727186315622,33.51652762,2643.1,2642.2,0.0386084]
[1727186315786,31.54547992,2643.1,2642.2,0.0386084]
[1727186317016,33.12109604,2643.1,2642.2,0.0386084]
[1727186317476,33.12010116,2643.1,2642.2,0.0386084]
[1727186318510,12.81577523,2643.1,2642.2,0.0386084]
[1727186319225,11.63547992,2643.1,2642.2,0.0386084]
[1727186319429,12.422371,2643.1,2642.2,0.0386084]
[1727186320529,11.63547992,2643.1,2642.2,0.0386084]
[1727186321415,12.422371,2643.1,2642.2,0.0386084]
[1727186322390,12.81578135,2643.1,2642.2,0.0386084]
[1727186322533,12.42146969,2643.1,2642.2,0.0386084]
[1727186322712,11.63547992,2643.1,2642.2,0.0386084]
[1727186323133,32.72578135,2643.1,2642.2,0.0386084]
[1727186323501,31.54547992,2643.1,2642.2,0.0386084]
[1727186324542,32.33092043,2643.1,2642.2,0.0386084]
[1727186325048,30.99547992,2643.1,2642.2,0.0386084]
[1727186325616,30.99547992,2643.1,2642.5,0.7822]
[1727186325913,34.97447992,2643.1,2642.5,0.7822]
[1727186326480,31.54547992,2643.1,2642.5,0.7822]
[1727186327236,11.63547992,2643.1,2642.5,0.7822]
[1727186329531,11.63547992,2643.1,2642.3,0.7726]
[1727186329734,11.63547992,2643.1,2642.2,0.0386084]
[1727186329735,15.61447992,2643.1,2642.2,0.0386084]
[1727186330627,18.74912383,2643.1,2642.2,0.0386084]
[1727186330829,3.78458,2642.3,2642.2,0.0386084]
[1727186331051,7.33458,2642.3,2642.2,0.0386084]
[1727186331268,10.46922391,2642.3,2642.2,0.0386084]
[1727186342259,16.44822391,2642.3,2642.2,0.0386084]
[1727186342591,16.44822391,2642.3,2642.2,0.00575584]
[1727186342758,18.48452542,2642.3,2642.2,0.00575584]
[1727186343650,19.26903532,2642.3,2642.2,0.00575584]
[1727186343875,17.26903532,2642.3,2642.2,0.00575584]
[1727186344182,16.48452542,2642.3,2642.2,0.00575584]
[1727186345258,18.48452542,2642.3,2642.2,0.00575584]
[1727186345544,19.26903532,2642.3,2642.2,0.00575584]
[1727186346544,19.66482685,2642.3,2642.2,0.00575584]
[1727186347287,18.48452542,2642.3,2642.2,0.00575584]
[1727186347584,20.44829179,2642.3,2642.2,0.00575584]
[1727186347945,40.35829179,2642.3,2642.2,0.00575584]
[1727186348849,38.78625114,2642.3,2642.2,0.00575584]
[1727186349366,40.7464639,2642.3,2642.2,0.00085644]
[1727186349571,40.7464639,2642.3,2641.4,0.0386084]
[1727186349572,11.31472,2641.5,2641.4,0.0386084]
[1727186350112,12.494924,2641.5,2641.4,0.0386084]
[1727186350252,12.494924,2641.5,2640.6,0.8035]
[1727186350253,4.33687,2640.7,2640.6,0.8035]
[1727186350450,4.33687,2640.7,2640.6,0.0029146]
[1727186350451,8.149231,2640.7,2640.6,0.0029146]
[1727186351088,11.28387491,2640.7,2640.6,0.0029146]
[1727186354311,8.149231,2640.7,2640.6,0.0029146]
[1727186355099,7.33687,2640.7,2640.6,0.0029146]
[1727186355901,6.78687,2640.7,2640.6,0.0029146]
[1727186356203,9.92151391,2640.7,2640.6,0.0029146]
[1727186356774,6.78687,2640.7,2640.6,0.0029146]
[1727186356975,7.33687,2640.7,2640.6,0.0029146]
[1727186357381,10.47151391,2640.7,2640.6,0.0029146]
[1727186357604,11.8973393,2640.7,2640.6,0.0029146]
[1727186359379,12.68381274,2640.7,2640.6,0.0029146]
[1727186362916,7.33687,2640.7,2640.6,0.0029146]
[1727186363279,3.55,2640.7,2640.6,0.0029146]
[1727186363597,7.33687,2640.7,2640.6,0.0029146]
[1727186363825,6.33687,2640.7,2640.6,0.0029146]
[1727186364398,4.33687,2640.7,2640.6,0.0029146]
[1727186364696,4.33687,2640.7,2640.6,0.8064146]
[1727186364697,3.78687,2640.7,2640.6,0.8064146]
[1727186365133,3.78675,2640.8,2640.6,0.8064146]
[1727186365301,3.78687,2640.7,2640.6,1.26997993]
[1727186365494,3.78687,2640.7,2640.6,0.8064146]
[1727186365997,3.78675,2640.8,2640.6,0.8064146]
[1727186366422,4.33687,2640.7,2640.6,0.8064146]
[1727186370018,0.78647344,2641.0,2640.6,0.8064146]
[1727186370019,3.78653,2641.0,2640.6,0.8064146]
[1727186370226,3.7863,2641.1,2640.8,0.8035]
[1727186371038,6.78626,2641.2,2640.8,0.8035]
[1727186371039,3.78651,2641.0,2640.8,0.8035]
[1727186371243,3.78651,2641.0,2640.8,0.8064146]